bitfinex/quotes_BTCUSD_20220103
["timestamp","ask_amount","ask_price","bid_price","bid_amount"]
[1641209229793,0.0001,47352.0,47351.0,0.67460727]
[1641209230055,0.0001,47352.0,47351.0,0.82739827]
[1641209230257,0.00028258,47352.0,47351.0,0.82739827]
[1641209231957,0.00028258,47352.0,47351.0,0.91969827]
[1641209232561,0.0022,47359.0,47351.0,0.91969827]
[1641209232562,0.0021,47359.0,47351.0,0.99231642]
[1641209232765,0.0021,47359.0,47358.0,0.00121742]
[1641209232958,0.0021,47359.0,47358.0,0.34575342]
[1641209233158,0.0021,47359.0,47358.0,0.44575342]
[1641209233362,0.0021,47359.0,47358.0,0.39575342]
[1641209233558,0.0021,47359.0,47358.0,0.394536]
[1641209233798,0.0021,47359.0,47358.0,0.397319]
[1641209234002,0.0021,47359.0,47358.0,0.447319]
[1641209235700,0.0021,47359.0,47358.0,0.76464215]
[1641209238331,0.0021,47359.0,47358.0,0.86464215]
[1641209238533,0.0021,47359.0,47358.0,0.91464215]
[1641209239532,0.0021,47359.0,47358.0,0.91590253]
[1641209240236,0.0021,47359.0,47358.0,1.23008798]
[1641209240639,0.0021,47359.0,47358.0,0.99389512]
[1641209242088,0.00217439,47359.0,47358.0,0.99389512]
[1641209246246,0.0001,47363.0,47362.0,0.05278]
[1641209246446,0.0001,47363.0,47362.0,0.67320931]
[1641209246647,0.0001,47363.0,47362.0,0.39580604]
[1641209247544,0.0001,47363.0,47362.0,0.79875192]
[1641209247746,0.0003,47373.0,47362.0,0.82353833]
[1641209247946,0.0003,47373.0,47366.0,0.05278]
[1641209247947,0.00734806,47369.0,47366.0,0.05278]
[1641209248146,0.00734806,47369.0,47366.0,0.10555948]
[1641209248350,0.0003,47373.0,47366.0,0.15555948]
[1641209248547,0.0003,47373.0,47369.0,0.26749755]
[1641209248786,0.0003,47373.0,47369.0,0.344676]
[1641209249789,0.009033,47370.0,47369.0,0.344676]
[1641209250892,0.009033,47370.0,47367.0,0.052778]
[1641209251089,0.009033,47370.0,47368.0,0.344676]
[1641209251291,0.00031039,47369.0,47368.0,0.344676]
[1641209251490,0.00031039,47369.0,47368.0,0.394676]
[1641209252292,0.00031039,47369.0,47368.0,0.444676]
[1641209252549,0.00038612,47369.0,47368.0,0.444676]
[1641209253454,0.00441912,47370.0,47368.0,0.344676]
[1641209253851,0.00441912,47370.0,47368.0,0.397459]
[1641209254251,0.00441912,47370.0,47368.0,0.447459]
[1641209254452,0.00441912,47370.0,47368.0,0.497459]
[1641209258186,0.00441912,47370.0,47368.0,0.550237]
[1641209260641,0.00441912,47370.0,47368.0,0.497459]
[1641209261943,0.00441912,47370.0,47368.0,0.447459]
[1641209263044,0.00441912,47370.0,47368.0,0.397459]
[1641209263244,6.925e-05,47369.0,47368.0,0.397459]
[1641209263446,6.925e-05,47369.0,47368.0,0.76721402]
[1641209263697,6.925e-05,47369.0,47368.0,0.81721402]
[1641209264487,6.925e-05,47369.0,47368.0,0.447459]
[1641209265489,6.925e-05,47369.0,47368.0,0.597459]
[1641209266192,6.925e-05,47369.0,47368.0,0.91536319]
[1641209266888,6.925e-05,47369.0,47368.0,0.597459]
[1641209267090,6.925e-05,47369.0,47368.0,0.91478829]
[1641209267289,0.42018837,47372.0,47369.0,0.052777]
[1641209267549,0.42018837,47372.0,47370.0,0.325613]
[1641209267749,0.42018837,47372.0,47370.0,0.425613]
[1641209268554,0.008533,47372.0,47371.0,0.3246441]
[1641209268763,0.008533,47372.0,47371.0,0.93094488]
[1641209269053,0.0003,47374.0,47373.0,0.00121299]
[1641209269251,0.0003,47374.0,47373.0,0.43836097]
[1641209269455,0.0001,47378.0,47377.0,0.0012981]
[1641209269652,0.0001,47378.0,47377.0,0.52303347]
[1641209269853,0.0084468,47380.0,47377.0,0.86770947]
[1641209270058,0.0084468,47380.0,47379.0,0.34587931]
[1641209270252,0.0002,47380.0,47379.0,0.48817931]
[1641209270453,0.0002,47380.0,47379.0,1.01639539]
[1641209270860,0.03189204,47382.0,47381.0,0.76546]
[1641209271063,0.01304274,47384.0,47382.0,0.35227798]
[1641209271292,0.01304274,47384.0,47383.0,0.367744]
[1641209271488,0.02157574,47384.0,47383.0,0.367744]
[1641209271685,0.02157574,47384.0,47383.0,0.467744]
[1641209271686,0.0218496,47384.0,47383.0,0.467744]
[1641209273087,0.0218496,47384.0,47383.0,0.367744]
[1641209273892,0.0219243,47384.0,47383.0,0.367744]
[1641209275535,0.0219243,47384.0,47383.0,0.467744]
[1641209275735,0.0219243,47384.0,47383.0,0.367744]
[1641209276539,0.0219243,47384.0,47383.0,0.78839263]
[1641209276737,0.0219243,47384.0,47383.0,0.367744]
[1641209279586,0.0219243,47384.0,47383.0,0.68361032]
[1641209279786,0.0219243,47384.0,47383.0,0.367744]
[1641209279986,0.0219243,47384.0,47383.0,0.0423]
[1641209280288,0.0219243,47384.0,47382.0,0.205515]
[1641209280686,0.00025561,47383.0,47382.0,0.205515]
[1641209281086,0.00025561,47383.0,47382.0,0.52527761]
[1641209281289,0.00025561,47383.0,47382.0,0.91588547]
[1641209281692,0.149208,47388.0,47384.0,0.00019256]
[1641209281890,0.149208,47388.0,47385.0,0.88352056]
[1641209282090,0.149208,47388.0,47386.0,0.1581124]
[1641209282290,5.0004,47390.0,47386.0,0.27840499]
[1641209282553,5.0004,47390.0,47387.0,0.00128216]
[1641209282753,5.0004,47390.0,47389.0,0.07799259]
[1641209282953,4.578247,47390.0,47389.0,0.12029259]
[1641209283150,4.5783748,47390.0,47389.0,0.22029259]
[1641209283354,3.1566298,47390.0,47389.0,0.22151843]
[1641209283552,3.1566298,47390.0,47389.0,0.58310047]
[1641209283751,3.1566298,47390.0,47389.0,0.22151843]
[1641209283950,3.1566298,47390.0,47389.0,0.32151843]
[1641209284359,3.15670257,47390.0,47389.0,0.32151843]
[1641209285151,3.15670257,47390.0,47389.0,0.22151843]
[1641209285352,3.15670257,47390.0,47389.0,0.32151843]
[1641209285550,3.15670257,47390.0,47389.0,0.64715664]
[1641209288902,3.15670257,47390.0,47389.0,0.64397064]
[1641209290635,2.73477257,47390.0,47389.0,0.64397064]
[1641209290836,2.31283657,47390.0,47389.0,0.31833243]
[1641209291235,1.46901957,47390.0,47389.0,0.31833243]
[1641209291434,1.46901957,47390.0,47389.0,0.66300843]
[1641209291640,1.46901957,47390.0,47389.0,0.344676]
[1641209291838,1.46901957,47390.0,47388.0,0.052745]
[1641209292040,1.46901957,47390.0,47387.0,0.10549]
[1641209292240,0.00010954,47389.0,47387.0,0.10549]
[1641209292638,9.129e-05,47388.0,47387.0,0.10549]
[1641209293883,9.129e-05,47388.0,47387.0,0.15549]
[1641209294191,9.129e-05,47388.0,47387.0,0.10549]
[1641209294789,0.00016244,47388.0,47387.0,0.10549]
[1641209296588,0.00016244,47388.0,47387.0,0.10460722]
[1641209297441,0.00016244,47388.0,47387.0,0.15460722]
[1641209298939,0.00016244,47388.0,47387.0,0.10460722]
[1641209299942,1.468819,47390.0,47388.0,0.24983756]
[1641209305351,6.59e-05,47389.0,47388.0,0.24983756]
[1641209305751,6.59e-05,47389.0,47388.0,0.35259056]
[1641209306151,6.59e-05,47389.0,47388.0,0.42852551]
[1641209308715,1.4638849,47390.0,47388.0,0.42852551]
[1641209308904,1.4638849,47390.0,47388.0,0.35259056]
[1641209309503,1.4638849,47390.0,47389.0,0.05]
[1641209310906,1.4638849,47390.0,47389.0,0.07799259]
[1641209311108,1.4638849,47390.0,47388.0,0.24983756]
[1641209311316,1.4638849,47390.0,47388.0,0.30259156]
[1641209312108,1.4338849,47390.0,47388.0,0.30259156]
[1641209312452,1.4338849,47390.0,47388.0,0.24983756]
[1641209312652,1.4338849,47390.0,47388.0,0.24911957]
[1641209314551,1.4338849,47390.0,47388.0,0.29911957]
[1641209314754,1.4338849,47390.0,47388.0,0.24911957]
[1641209314953,1.4338849,47390.0,47388.0,0.30187357]
[1641209315660,1.43331438,47390.0,47388.0,0.24911957]
[1641209318713,1.43331438,47390.0,47388.0,0.22502739]
[1641209319412,1.48607838,47390.0,47388.0,0.22502739]
[1641209320038,0.35919997,47389.0,47388.0,0.22502739]
[1641209321242,0.62169815,47389.0,47388.0,0.22502739]
[1641209321441,1.48607838,47390.0,47388.0,0.22502739]
[1641209321642,1.43331438,47390.0,47388.0,0.22502739]
[1641209322243,1.794676,47389.0,47388.0,0.22502739]
[1641209322445,1.936976,47389.0,47388.0,0.22502739]
[1641209322644,2.00898341,47389.0,47388.0,0.22502739]
[1641209322843,1.936976,47389.0,47388.0,0.22502739]
[1641209323044,3.256976,47389.0,47388.0,0.22502739]
[1641209323449,4.06725499,47389.0,47388.0,0.22502739]
[1641209324008,2.94725499,47389.0,47388.0,0.22502739]
[1641209324208,1.49725499,47389.0,47388.0,0.22502739]
[1641209324608,1.89343828,47389.0,47388.0,0.22502739]
[1641209326012,3.01343828,47389.0,47388.0,0.22502739]
[1641209328042,3.06343828,47389.0,47388.0,0.08638739]
[1641209328244,1.717459,47386.0,47385.0,1.48e-06]
[1641209328442,1.717459,47386.0,47368.0,0.7105615]
[1641209328443,2.44013776,47386.0,47368.0,0.7105615]
[1641209328649,0.00121152,47374.0,47368.0,0.7105615]
[1641209328844,0.00121152,47374.0,47369.0,0.0003469]
[1641209329046,0.310031,47372.0,47369.0,0.0003469]
[1641209329247,0.31006677,47371.0,47366.0,0.00040168]
[1641209329445,0.05278881,47369.0,47366.0,0.00040168]
[1641209329644,0.05278881,47369.0,47361.0,0.7105615]
[1641209329645,0.05278881,47369.0,47362.0,0.00047471]
[1641209329844,0.00121152,47374.0,47362.0,0.00047471]
[1641209330043,0.26531357,47374.0,47362.0,0.00047471]
[1641209330345,0.53660389,47374.0,47362.0,0.00047471]
[1641209330544,0.052788,47369.0,47362.0,0.00047471]
[1641209331219,0.052788,47369.0,47364.0,2.62810249]
[1641209331408,0.052788,47369.0,47365.0,0.344676]
[1641209331608,0.052788,47369.0,47365.0,0.00041993]
[1641209331807,0.052788,47369.0,47366.0,0.00040168]
[1641209332007,0.052788,47369.0,47365.0,0.00041993]
[1641209332406,0.39481757,47369.0,47365.0,0.00041993]
[1641209332606,0.05278978,47368.0,47365.0,0.00041993]
[1641209333010,0.05279,47367.0,47365.0,0.00041993]
[1641209333208,0.68727111,47366.0,47365.0,0.00041993]
[1641209333406,0.68727111,47366.0,47357.0,0.053359]
[1641209333607,0.34259511,47366.0,47357.0,0.000566]
[1641209333814,0.34259511,47366.0,47358.0,0.00054774]
[1641209334008,0.0012488,47368.0,47357.0,0.000566]
[1641209334210,0.0012488,47368.0,47360.0,0.31624372]
[1641209334407,0.0012488,47368.0,47362.0,0.052787]
[1641209334610,0.0045,47369.0,47362.0,0.052787]
[1641209334808,0.35161028,47372.0,47363.0,0.00045645]
[1641209335052,0.052786,47371.0,47363.0,1.69895698]
[1641209335451,0.052786,47371.0,47364.0,0.00043819]
[1641209335651,0.052786,47371.0,47365.0,0.052785]
[1641209336051,0.052786,47371.0,47366.0,0.00040168]
[1641209336553,0.052782,47374.0,47366.0,0.00040168]
[1641209336753,0.00120639,47375.0,47369.0,0.05278]
[1641209336955,0.00120639,47375.0,47368.0,0.052778]
[1641209337153,0.00120639,47375.0,47370.0,0.00032865]
[1641209338458,0.00120639,47375.0,47370.0,0.05310665]
[1641209338721,0.36317369,47373.0,47370.0,0.00032865]
[1641209338909,0.344676,47372.0,47371.0,0.00031039]
[1641209339107,0.344676,47372.0,47365.0,0.00041993]
[1641209339306,0.052783,47373.0,47365.0,0.00041993]
[1641209339709,0.05278012,47374.0,47366.0,0.344676]
[1641209339906,0.34141027,47375.0,47365.0,0.00041993]
[1641209340109,0.28791245,47374.0,47367.0,0.00038342]
[1641209340310,0.30397128,47372.0,47364.0,0.00043819]
[1641209340509,0.30397128,47372.0,47365.0,0.052783]
[1641209340710,0.34647462,47375.0,47365.0,0.052783]
[1641209340911,0.00120639,47375.0,47366.0,0.00040168]
[1641209341313,0.00120639,47375.0,47364.0,0.05043819]
[1641209341711,0.31553694,47374.0,47365.0,0.00041993]
[1641209341912,0.052782,47373.0,47366.0,0.052781]
[1641209342112,0.05278203,47372.0,47366.0,0.052781]
[1641209342312,0.05278203,47372.0,47367.0,0.00038342]
[1641209343145,0.05398739,47375.0,47368.0,0.052781]
[1641209343544,0.05278026,47374.0,47368.0,0.052781]
[1641209343744,0.05278026,47374.0,47368.0,0.102781]
[1641209343943,0.05278026,47374.0,47368.0,0.05]
[1641209344149,0.052782,47373.0,47370.0,0.052781]
[1641209344547,0.05398489,47375.0,47371.0,0.00031039]
[1641209344746,0.344676,47374.0,47371.0,0.00031039]
[1641209344947,0.05398489,47375.0,47371.0,0.00031039]
[1641209345145,0.344676,47374.0,47371.0,0.00031039]
[1641209345646,0.39745642,47374.0,47371.0,0.00031039]
[1641209346309,0.552776,47379.0,47371.0,0.00031039]
[1641209346511,0.344676,47378.0,47374.0,0.052776]
[1641209346909,0.344676,47378.0,47375.0,0.00023736]
[1641209347507,0.052779,47377.0,47375.0,0.00023736]
[1641209347710,0.39745432,47376.0,47375.0,0.00023736]
[1641209348109,0.73904538,47376.0,47373.0,0.00027387]
[1641209348312,0.73904538,47376.0,47368.0,0.00036516]
[1641209348508,0.34159106,47376.0,47368.0,0.03655462]
[1641209348711,0.10556686,47373.0,47368.0,0.03655462]
[1641209348910,0.052783,47373.0,47368.0,0.03655462]
[1641209349311,0.052783,47373.0,47368.0,0.00036516]
[1641209350040,0.052783,47373.0,47369.0,0.105566]
[1641209350239,0.05278,47375.0,47369.0,0.105566]
[1641209350438,0.05278,47375.0,47370.0,0.00032865]
[1641209350839,0.05278,47375.0,47368.0,0.00036516]
[1641209351539,0.05277901,47374.0,47372.0,0.05278]
[1641209351842,0.052784,47372.0,47368.0,0.0390887]
[1641209352041,0.052784,47372.0,47367.0,0.03636946]
[1641209352238,0.052784,47372.0,47369.0,0.0003469]
[1641209352437,0.052784,47372.0,47369.0,0.0531299]
[1641209352836,0.052784,47372.0,47370.0,0.00032865]
[1641209353038,0.0527831,47371.0,47370.0,0.00032865]
[1641209353439,0.0527831,47371.0,47368.0,0.00036516]
[1641209353708,0.1055681,47371.0,47367.0,0.03539694]
[1641209353896,0.1055681,47371.0,47365.0,0.00041993]
[1641209354096,0.1055681,47371.0,47368.0,0.05315016]
[1641209354296,0.3953239,47371.0,47368.0,0.0944816]
[1641209354503,0.3953239,47371.0,47366.0,0.04093496]
[1641209354504,0.0527831,47371.0,47366.0,0.04093496]
[1641209354698,0.0527831,47371.0,47365.0,0.00041993]
[1641209354699,0.052788,47368.0,47367.0,0.03494822]
[1641209354898,0.052788,47368.0,47367.0,0.0405038]
[1641209355097,0.052788,47368.0,47367.0,0.00045751]
[1641209355302,0.15836377,47368.0,47367.0,0.00045751]
[1641209358961,0.15836377,47368.0,47367.0,0.04020565]
[1641209359160,0.15836377,47368.0,47367.0,0.00045751]
[1641209359362,0.15836377,47368.0,47367.0,0.03817603]
[1641209359559,0.15836377,47368.0,47367.0,0.03838093]
[1641209359770,0.15836377,47368.0,47367.0,0.04945555]
[1641209360364,0.49449186,47368.0,47367.0,0.03780671]
[1641209360564,0.15836377,47368.0,47367.0,0.00045751]
[1641209361606,0.5035496,47368.0,47367.0,0.00045751]
[1641209361805,0.8982256,47368.0,47367.0,0.00045751]
[1641209362005,0.9982256,47368.0,47367.0,0.00045751]
[1641209364010,0.65303977,47368.0,47367.0,0.00045751]
[1641209366440,0.62112364,47368.0,47367.0,0.00045751]
[1641209367042,0.47112364,47368.0,47367.0,0.00045751]
[1641209368242,0.80701289,47368.0,47367.0,0.00045751]
[1641209369295,1.17440415,47368.0,47367.0,0.00045751]
[1641209370595,1.27440415,47368.0,47367.0,0.00045751]
[1641209370798,1.32440415,47368.0,47367.0,0.00045751]
[1641209377494,1.38638415,47368.0,47367.0,0.00045751]
[1641209377893,1.42868415,47368.0,47367.0,0.00045751]
[1641209379494,1.62868415,47368.0,47367.0,0.00045751]
[1641209379795,2.74990194,47368.0,47367.0,0.00045751]
[1641209380262,0.5,47365.0,47363.0,0.00825562]
[1641209380459,0.90522845,47364.0,47363.0,0.00825562]
[1641209380664,2.80791575,47364.0,47363.0,0.00825562]
[1641209380859,2.80791575,47364.0,47363.0,0.00832865]
[1641209381158,2.73590834,47364.0,47363.0,0.00832865]
[1641209382259,2.73590834,47364.0,47363.0,7.303e-05]
[1641209382461,2.46344299,47364.0,47363.0,7.303e-05]
[1641209382660,0.27018604,47352.0,47350.0,0.00031038]
[1641209382862,0.32299357,47352.0,47350.0,0.00031038]
[1641209383263,0.27018604,47352.0,47350.0,0.00031038]
[1641209383720,0.5,47357.0,47350.0,0.00031038]
[1641209383915,0.4990422,47357.0,47350.0,0.00031038]
[1641209384114,0.55280394,47354.0,47351.0,0.052804]
[1641209384315,0.55280394,47354.0,47351.0,0.102804]
[1641209384514,0.55280394,47354.0,47352.0,0.00027387]
[1641209384716,0.5,47354.0,47352.0,0.00027387]
[1641209385315,0.5,47354.0,47353.0,0.07799259]
[1641209385716,0.5,47354.0,47353.0,0.00025561]
[1641209386115,0.5,47354.0,47352.0,0.00027387]
[1641209386116,0.552803,47354.0,47352.0,0.00027387]
[1641209386317,0.052803,47354.0,47352.0,0.00027387]
[1641209386515,0.052803,47354.0,47350.0,0.00031038]
[1641209386918,0.1056107,47354.0,47350.0,0.00031038]
[1641209387117,0.052806,47352.0,47350.0,0.00031038]
[1641209387564,0.74697531,47358.0,47351.0,0.344676]
[1641209387767,0.74697531,47358.0,47350.0,0.00031038]
[1641209387967,0.74697531,47358.0,47352.0,0.00027387]
[1641209388165,0.74697531,47358.0,47350.0,0.33366392]
[1641209388366,0.74697531,47358.0,47351.0,0.00029212]
[1641209388568,0.05280327,47354.0,47351.0,0.05309512]
[1641209388766,0.10560627,47354.0,47351.0,0.10590012]
[1641209388970,0.10560627,47354.0,47352.0,0.00027387]
[1641209390177,0.10560627,47354.0,47350.0,0.00031038]
[1641209390369,0.052808,47352.0,47350.0,0.00031038]
[1641209391402,0.344676,47351.0,47350.0,0.00031038]
[1641209391599,0.344676,47351.0,47343.0,0.37289493]
[1641209391800,0.05281214,47348.0,47344.0,0.00041993]
[1641209392001,0.052811,47346.0,47345.0,0.344676]
[1641209392200,0.052811,47346.0,47345.0,0.42266859]
[1641209392401,0.052811,47346.0,47345.0,0.42307026]
[1641209392600,0.052811,47346.0,47345.0,0.34507767]
[1641209392805,0.121601,47346.0,47345.0,0.00040167]
[1641209393200,0.121601,47346.0,47342.0,0.00045645]
[1641209393602,0.38575931,47343.0,47342.0,0.00045645]
[1641209394001,1.23043531,47343.0,47342.0,0.00045645]
[1641209394801,0.88575931,47343.0,47342.0,0.00045645]
[1641209395851,1.07805931,47343.0,47342.0,0.00045645]
[1641209396150,1.47273531,47343.0,47342.0,0.00045645]
[1641209397552,1.67273531,47343.0,47342.0,0.00045645]
[1641209398049,1.42273531,47343.0,47342.0,0.00045645]
[1641209398249,1.27273531,47343.0,47342.0,0.00045645]
[1641209398450,0.344676,47342.0,47338.0,0.00567749]
[1641209398711,0.55282,47340.0,47338.0,0.00567749]
[1641209398902,0.05282,47340.0,47339.0,0.07799259]
[1641209399301,0.05282,47340.0,47338.0,0.00567749]
[1641209399506,0.10565,47344.0,47339.0,0.42266859]
[1641209399703,0.0423,47353.0,47339.0,0.42266859]
[1641209399704,0.5,47346.0,47341.0,0.04937924]
[1641209399901,0.5,47346.0,47342.0,0.37290001]
[1641209400102,0.5,47346.0,47343.0,0.3318064]
[1641209400301,9.129e-05,47347.0,47343.0,0.3318064]
[1641209400302,9.129e-05,47347.0,47344.0,0.344634]
[1641209400703,9.129e-05,47347.0,47345.0,0.052809]
[1641209400902,9.129e-05,47347.0,47346.0,0.311027]
[1641209401202,9.129e-05,47347.0,47346.0,0.63656358]
[1641209401406,9.129e-05,47347.0,47346.0,0.68656358]
[1641209402302,9.129e-05,47347.0,47346.0,0.76455617]
[1641209402553,9.129e-05,47347.0,47346.0,1.96421128]
[1641209403153,9.129e-05,47347.0,47346.0,1.88621869]
[1641209404452,9.129e-05,47347.0,47346.0,1.96421128]
[1641209406308,9.129e-05,47347.0,47346.0,2.15651128]
[1641209407104,0.00826469,47355.0,47346.0,2.15651128]
[1641209407302,0.00826469,47355.0,47351.0,0.105594]
[1641209407503,0.00826469,47355.0,47352.0,0.67534762]
[1641209407703,0.0002191,47354.0,47352.0,0.72534762]
[1641209407903,0.0002191,47354.0,47353.0,0.32917682]
[1641209408103,0.00826469,47355.0,47353.0,1.35813814]
[1641209408303,0.05279721,47361.0,47354.0,0.66965166]
[1641209408503,0.052795,47362.0,47358.0,0.052795]
[1641209408704,0.00032865,47360.0,47358.0,0.052795]
[1641209409111,0.00031039,47359.0,47358.0,0.052795]
[1641209410445,0.00031039,47359.0,47358.0,0.38154922]
[1641209410750,0.00031039,47359.0,47358.0,0.397316]
[1641209410945,0.00031039,47359.0,47358.0,0.72118397]
[1641209411446,0.00031039,47359.0,47358.0,0.71934933]
[1641209412452,0.00031039,47359.0,47358.0,0.37482833]
[1641209413050,0.00031039,47359.0,47358.0,0.05096036]
[1641209413254,0.00158651,47359.0,47355.0,0.71796432]
[1641209413453,0.23117274,47356.0,47355.0,0.71796432]
[1641209413714,0.05280678,47355.0,47352.0,0.71796432]
[1641209414106,0.0002191,47354.0,47352.0,0.71796432]
[1641209414309,0.0002191,47354.0,47351.0,0.00131073]
[1641209414507,0.00020084,47353.0,47351.0,0.00131073]
[1641209414906,0.00018258,47352.0,47351.0,0.00131073]
[1641209415509,0.26405657,47352.0,47351.0,0.00131073]
[1641209415708,0.31686857,47352.0,47351.0,0.00131073]
[1641209416008,0.66138957,47352.0,47351.0,0.00131073]
[1641209416408,1.01424785,47352.0,47351.0,0.00131073]
[1641209416808,1.15654785,47352.0,47351.0,0.00131073]
[1641209417013,1.20777761,47352.0,47351.0,0.00131073]
[1641209417209,0.3299082,47345.0,47341.0,0.00826455]
[1641209417450,0.28889494,47342.0,47341.0,0.00826455]
[1641209417648,0.62933815,47342.0,47341.0,0.00826455]
[1641209417848,0.97385915,47342.0,47341.0,0.00826455]
[1641209418049,1.07385915,47342.0,47341.0,0.00826455]
[1641209418248,0.05282602,47340.0,47336.0,0.01]
[1641209418451,0.31845868,47339.0,47337.0,0.00826479]
[1641209418650,0.344521,47338.0,47337.0,0.00835607]
[1641209419050,0.105653,47340.0,47337.0,0.00835607]
[1641209419251,0.344521,47339.0,47337.0,0.00835607]
[1641209419450,0.397346,47339.0,47338.0,0.00138376]
[1641209419850,0.45017202,47339.0,47338.0,0.00138376]
[1641209420050,0.10565102,47339.0,47338.0,0.00138376]
[1641209426060,0.10565102,47339.0,47338.0,0.71934808]
[1641209426863,0.10565102,47339.0,47338.0,0.00144376]
[1641209428161,0.10565102,47339.0,47338.0,0.71940808]
[1641209428999,0.10565102,47339.0,47338.0,0.00144376]
[1641209430600,0.10565102,47339.0,47338.0,0.71940808]
[1641209431003,0.44524107,47339.0,47338.0,0.71940808]
[1641209431697,0.10565102,47339.0,47338.0,0.71940808]
[1641209431898,0.44526653,47339.0,47338.0,0.71940808]
[1641209432199,0.10565102,47339.0,47337.0,0.71459195]
[1641209432464,1.2,47338.0,47336.0,0.01]
[1641209432766,0.38770049,47337.0,47336.0,0.01]
[1641209433864,0.39317085,47337.0,47336.0,0.01]
[1641209434263,0.05829636,47337.0,47336.0,0.01]
[1641209436898,0.05829636,47337.0,47336.0,0.005]
[1641209437301,0.74525147,47337.0,47336.0,0.005]
[1641209439105,0.40281736,47337.0,47336.0,0.005]
[1641209439704,0.73981321,47337.0,47336.0,0.005]
[1641209440379,0.83981321,47337.0,47336.0,0.005]
[1641209440779,0.88981321,47337.0,47336.0,0.005]
[1641209441378,0.89106991,47337.0,47336.0,0.005]
[1641209443085,0.55407406,47337.0,47336.0,0.005]
[1641209444098,0.88886938,47337.0,47336.0,0.005]
[1641209445102,0.73886938,47337.0,47336.0,0.005]
[1641209445305,0.83886938,47337.0,47336.0,0.005]
[1641209445902,0.73886938,47337.0,47336.0,0.005]
[1641209446702,0.40407406,47337.0,47336.0,0.005]
[1641209447304,0.40281736,47337.0,47336.0,0.005]
[1641209447972,0.05829636,47337.0,47336.0,0.005]
[1641209448179,0.00547036,47337.0,47336.0,0.005]
[1641209448770,0.00547036,47337.0,47336.0,0.36051077]
[1641209448970,0.00547036,47337.0,47336.0,0.43850336]
[1641209449170,0.00547036,47337.0,47336.0,0.36051077]
[1641209449969,0.00547036,47337.0,47336.0,0.43850336]
[1641209450873,0.00547036,47337.0,47336.0,0.78302436]
[1641209454301,0.00547036,47337.0,47336.0,0.43850336]
[1641209454804,0.00547036,47337.0,47336.0,0.08299259]
[1641209455251,0.00547036,47337.0,47336.0,0.005]
[1641209456251,0.00547036,47337.0,47336.0,0.08299259]
[1641209456854,0.00547036,47337.0,47336.0,0.41857576]
[1641209457053,0.00547036,47337.0,47336.0,0.08299259]
[1641209458559,0.00547036,47337.0,47336.0,0.73158002]
[1641209461003,0.00547036,47337.0,47336.0,0.42028102]
[1641209461211,0.00547036,47337.0,47336.0,1.13914939]
[1641209461402,0.00547036,47337.0,47336.0,0.80186096]
[1641209461602,0.00547036,47337.0,47336.0,0.08299259]
[1641209464448,0.00547036,47337.0,47336.0,0.005]
[1641209466209,1.20126964,47338.0,47336.0,0.005]
[1641209466210,1.19486419,47338.0,47336.0,0.005]
[1641209466603,1.19611809,47338.0,47336.0,0.005]
[1641209467002,0.344521,47337.0,47336.0,0.005]
[1641209467804,0.450177,47337.0,47336.0,0.005]
[1641209469206,0.397348,47337.0,47336.0,0.005]
[1641209470849,0.4021992,47337.0,47336.0,0.005]
[1641209473153,0.7021992,47337.0,47336.0,0.005]
[1641209474205,1.05271418,47337.0,47336.0,0.005]
[1641209474602,1.0539368,47337.0,47336.0,0.005]
[1641209475405,0.70342182,47337.0,47336.0,0.005]
[1641209476706,1.03828875,47337.0,47336.0,0.005]
[1641209477105,2.23647054,47337.0,47336.0,0.005]
[1641209477305,1.91572182,47337.0,47336.0,0.005]
[1641209479354,0.79572182,47337.0,47336.0,0.005]
[1641209479550,1.171136,47337.0,47336.0,0.005]
[1641209480351,2.291136,47337.0,47336.0,0.005]
[1641209481207,3.291136,47337.0,47336.0,0.005]
[1641209488459,2.171136,47337.0,47336.0,0.005]
[1641209490007,3.291136,47337.0,47336.0,0.005]
[1641209490904,2.171136,47337.0,47336.0,0.005]
[1641209492106,3.291136,47337.0,47336.0,0.005]
[1641209492303,3.391136,47337.0,47336.0,0.005]
[1641209492560,3.291136,47337.0,47336.0,0.005]
[1641209494957,2.171136,47337.0,47336.0,0.005]
[1641209495561,3.291136,47337.0,47336.0,0.005]
[1641209495758,3.141136,47337.0,47336.0,0.005]
[1641209497001,3.341136,47337.0,47336.0,0.005]
[1641209497199,3.291136,47337.0,47336.0,0.005]
[1641209498199,2.171136,47337.0,47336.0,0.005]
[1641209498502,1.64572182,47337.0,47336.0,0.005]
[1641209498700,2.76572182,47337.0,47336.0,0.005]
[1641209499399,2.76382542,47337.0,47336.0,0.005]
[1641209499800,2.91382542,47337.0,47336.0,0.005]
[1641209500254,0.2,47335.0,47331.0,0.002]
[1641209500460,2.60862525,47332.0,47331.0,0.0001]
[1641209500652,2.80092525,47332.0,47331.0,0.0001]
[1641209500854,0.2,47330.0,47312.0,0.40245523]
[1641209501054,0.00129205,47325.0,47312.0,0.40245523]
[1641209501253,0.00129205,47325.0,47313.0,0.26671525]
[1641209501254,1.02549564,47322.0,47313.0,0.26671525]
[1641209501454,1.06779564,47322.0,47313.0,0.26671525]
[1641209501652,1.06779564,47322.0,47321.0,0.00231038]
[1641209501653,1.21779564,47322.0,47321.0,0.00231038]
[1641209501854,0.052852,47317.0,47312.0,0.34960423]
[1641209502053,0.052852,47317.0,47311.0,0.9313]
[1641209502354,0.052852,47317.0,47314.0,0.052851]
[1641209502854,0.344521,47316.0,47315.0,0.00010955]
[1641209503057,0.052852,47317.0,47315.0,0.00010955]
[1641209503457,0.05285141,47316.0,47315.0,0.00010955]
[1641209503723,0.39737241,47316.0,47315.0,0.00010955]
[1641209503909,0.73813199,47316.0,47312.0,0.00016432]
[1641209504109,0.052854,47314.0,47312.0,0.00016432]
[1641209504309,0.28106405,47313.0,47312.0,0.00016432]
[1641209505315,0.28106405,47313.0,47312.0,1.20060694]
[1641209506916,0.28106405,47313.0,47312.0,0.72045709]
[1641209507315,0.28591769,47313.0,47312.0,0.72045709]
[1641209508356,0.00485364,47313.0,47312.0,0.72045709]
[1641209510152,0.00485364,47313.0,47312.0,0.00016432]
[1641209511403,0.00485364,47313.0,47312.0,0.72045709]
[1641209511602,0.00485364,47313.0,47312.0,1.39880884]
[1641209512001,0.00485364,47313.0,47312.0,1.14297068]
[1641209512401,0.00485364,47313.0,47312.0,0.42267791]
[1641209512603,0.00485364,47313.0,47312.0,1.62302289]
[1641209513606,0.00485364,47313.0,47312.0,1.2005093]
[1641209514805,0.34937464,47313.0,47312.0,1.2005093]
[1641209515358,0.00485364,47313.0,47312.0,1.2005093]
[1641209518057,0.00485364,47313.0,47312.0,1.1955093]